bitfinex-derivatives/quotes_ETHF0:USTF0_20250416
["timestamp","ask_amount","ask_price","bid_price","bid_amount"]
[1744827458126,1.28186,1560.2,1560.1,10.4764]
[1744827458320,3.20485,1560.1,1559.6,3.2078]
[1744827458623,4.49004,1559.8,1559.7,10.4764]
[1744827459318,3.2078,1559.8,1559.3,4.9157]
[1744827459626,3.2078,1560.0,1559.5,1.28238]
[1744827459819,3.2078,1560.0,1559.3,8.1235]
[1744827459820,10.5583,1560.1,1559.6,1.28229]
[1744827460024,3.2078,1560.2,1559.5,3.2078]
[1744827460423,3.2078,1560.0,1559.6,10.4368]
[1744827460621,1.28227,1559.7,1559.6,10.4368]
[1744827461031,1.28268,1559.2,1559.1,5.0008]
[1744827461332,3.20588,1559.6,1558.6,5.368]
[1744827461333,6.42395045,1559.3,1558.6,5.368]
[1744827461532,1.2828,1559.1,1558.9,1.28293]
[1744827461725,6.42395045,1559.3,1558.6,5.368]
[1744827461930,0.00961045,1559.3,1558.7,3.2078]
[1744827462123,3.2078,1559.8,1559.2,1.28268]
[1744827462323,3.2078,1559.8,1559.1,3.20687]
[1744827462627,4.48999,1559.8,1559.6,1.28231]
[1744827462830,3.2078,1560.0,1559.7,9.8275]
[1744827463226,4.49949045,1560.0,1559.7,9.83711045]
[1744827463426,3.21741045,1560.0,1559.7,9.83711045]
[1744827463626,4.48999,1559.8,1559.7,9.83711045]
[1744827464528,9.48999,1559.8,1559.7,0.00961045]
[1744827464735,18.14199,1559.8,1559.7,4.5e-07]
[1744827464931,23.10949,1559.8,1559.7,4.5e-07]
[1744827465327,1.28268,1559.2,1559.1,9.8275]
[1744827465533,15.06639,1559.3,1558.7,1.28307]
[1744827465828,99.5699,1559.7,1559.0,3.2078]
[1744827465829,3.2078,1559.6,1559.0,3.2078]
[1744827466131,1.28245,1559.5,1559.2,1.28262]
[1744827466430,1.28251,1559.4,1559.3,10.2883]
[1744827466630,0.00961045,1559.5,1559.3,11.57083]
[1744827466934,1.28251,1559.4,1559.3,10.2883]
[1744827467134,1.29211045,1559.5,1559.3,11.57088]
[1744827467331,1.29211045,1559.5,1559.3,10.2883]
[1744827467633,0.00961045,1559.5,1559.3,10.2883]
[1744827467829,0.00961045,1559.5,1559.4,1.28251]
[1744827468229,3.2078,1560.0,1559.7,1.28224]
[1744827468429,1.2821,1559.9,1559.8,10.6979]
[1744827469432,3.21741045,1560.0,1559.8,15.6979]
[1744827469638,3.21741045,1560.0,1559.8,10.6979]
[1744827469823,4.49943045,1560.0,1559.9,10.6979]
[1744827470134,3.20424,1560.4,1560.0,1.28196]
[1744827470338,1.28186,1560.2,1560.1,11.97984]
[1744827470536,1.28186,1560.2,1560.1,10.6979]
[1744827470727,1.28186,1560.2,1560.1,11.97984]
[1744827471030,1.0,2248.0,1560.2,3.20465]
[1744827471031,3.2078,1560.8,1560.2,3.20465]
[1744827471238,0.00961045,1560.7,1560.3,10.71481045]
[1744827471429,1.28156,1560.6,1560.5,1.28161]
[1744827471826,1.29110045,1560.7,1560.6,1.28153]
[1744827472022,1.29110045,1560.7,1560.6,10.7052]
[1744827472626,1.29110045,1560.7,1560.6,11.98673]
[1744827472820,0.00961045,1560.7,1560.6,11.98673]
[1744827473027,1.29106045,1560.7,1560.6,10.7052]
[1744827473531,1.28169,1560.4,1560.3,0.00961045]
[1744827474433,11.70289,1560.4,1560.3,4.5e-07]
[1744827475932,1.28169,1560.4,1560.3,4.5e-07]
[1744827476534,1.28169,1560.4,1560.3,1.28173045]
[1744827476729,1.28169,1560.4,1560.3,4.5e-07]
[1744827477437,1.28169,1560.4,1560.3,1.28177045]
[1744827477735,3.21741045,1560.7,1560.3,5.00000045]
[1744827477939,3.21741045,1560.7,1560.4,11.21321]
[1744827478139,1.28161,1560.5,1560.4,11.21321]
[1744827478435,3.21741045,1560.7,1560.4,9.9316]
[1744827478639,0.00961045,1560.7,1560.6,1.28153]
[1744827478935,6.4106,1561.1,1560.5,8.5074]
[1744827479133,1.28135,1560.9,1560.8,1.28135]
[1744827479335,3.20269,1561.2,1560.6,13.13542]
[1744827479639,1.28132,1560.9,1560.8,1.28133]
[1744827480139,1.29087045,1561.0,1560.8,1.28133]
[1744827480332,0.00961045,1561.0,1560.6,40.8]
[1744827480539,1.28153,1560.6,1560.5,5.3034]
[1744827480732,3.2078,1560.6,1560.3,3.20780045]
[1744827480939,1.28169,1560.4,1560.3,3.20780045]
[1744827481139,1.28169,1560.4,1560.3,4.5e-07]
[1744827481843,1.28169,1560.4,1560.3,1.28173045]
[1744827482040,4.48939,1560.6,1560.5,1.28161]
[1744827482235,4.48933,1560.6,1560.5,1.28161]
[1744827482434,1.28141,1560.8,1560.4,3.2042]
[1744827482637,1.28141,1560.8,1560.7,1.28142]
[1744827482945,4.4891,1560.9,1560.8,1.28136]
[1744827483141,0.00961045,1561.0,1560.9,1.28128]
[1744827483345,1.2813,1560.9,1560.8,1.2813]
[1744827483542,0.00961045,1561.0,1560.5,13.53328]
[1744827483734,0.00961045,1561.0,1560.9,1.28128]
[1744827484646,1.28135,1560.9,1560.7,1.28136]
[1744827484843,0.00961045,1561.0,1560.9,1.28128]
[1744827485038,0.00961045,1561.0,1560.8,1.28132]
[1744827485235,1.28135,1560.9,1560.8,1.28132]
[1744827485543,1.29081045,1561.0,1560.9,1.28128]
[1744827485743,3.21741045,1561.0,1560.5,6.408]
[1744827486044,1.28142,1560.8,1560.7,1.28144]
[1744827486252,0.00961045,1561.0,1560.9,1.28128]
[1744827487251,3.2078,1561.5,1561.4,1.28087]
[1744827487543,3.2078,1561.6,1561.2,3.20245]
[1744827487741,1.28085,1561.5,1561.4,1.28085]
[1744827488145,20.31504973,1561.8,1561.2,6.40502]
[1744827488346,1.28077,1561.6,1561.5,1.28076]
[1744827488848,0.00961045,1561.7,1561.6,1.28071]
[1744827489245,4.00226973,1562.3,1561.6,5.0]
[1744827489442,1.28029,1562.2,1562.0,1.28031]
[1744827489748,4.00226973,1562.3,1562.2,1.28022]
[1744827489948,4.00226973,1562.3,1561.9,3.20115]
[1744827489949,4.00226973,1562.3,1561.9,1.28044]
[1744827490151,3.2078,1562.2,1561.7,1.28063]
[1744827490451,1.28044,1562.0,1561.9,0.00961045]
[1744827490644,4.48824,1562.0,1561.9,4.5e-07]
[1744827490845,9.48824,1562.0,1561.9,4.5e-07]
[1744827491143,4.48824,1562.0,1561.9,4.5e-07]
[1744827491341,1.28044,1562.0,1561.9,4.5e-07]
[1744827491541,4.48824,1562.0,1561.9,4.5e-07]
[1744827491746,9.48824,1562.0,1561.9,4.5e-07]
[1744827492946,4.48824,1562.0,1561.9,4.5e-07]
[1744827493643,1.28044,1562.0,1561.9,4.5e-07]
[1744827494039,11.35714,1562.0,1561.9,4.5e-07]
[1744827494645,1.28044,1562.0,1561.9,4.5e-07]
[1744827495044,11.35714,1562.0,1561.9,4.5e-07]
[1744827495241,16.35714,1562.0,1561.9,4.5e-07]
[1744827495442,11.35714,1562.0,1561.9,4.5e-07]
[1744827496646,16.35714,1562.0,1561.9,4.5e-07]
[1744827496851,11.35714,1562.0,1561.9,4.5e-07]
[1744827498648,11.52917045,1562.3,1561.9,4.5e-07]
[1744827498845,1.28038,1562.0,1561.9,4.5e-07]
[1744827499258,16.43098,1562.0,1561.9,4.5e-07]
[1744827499945,3.20228,1561.4,1561.0,1.28114]
[1744827500144,10.1506,1561.3,1561.0,10.0912]
[1744827500449,1.28112,1561.1,1561.0,10.0912]
[1744827500649,4.48892,1561.1,1561.0,10.0912]
[1744827500850,3.20301,1561.0,1560.6,5.0519]
[1744827501058,1.28136,1560.8,1560.7,10.0912]
[1744827501459,13.3584,1560.9,1560.6,0.00961045]
[1744827501659,4.48925,1560.7,1560.6,0.00961045]
[1744827501863,3.20415,1560.5,1559.6,19.80661697]
[1744827502157,3.2078,1560.3,1560.0,10.7336]
[1744827502358,1.28194,1560.1,1560.0,10.7336]
[1744827502863,3.21434045,1560.2,1559.9,0.00961045]
[1744827503066,11.28642,1560.0,1559.9,0.00961045]
[1744827503365,0.00961045,1560.2,1559.9,5.00961045]
[1744827503568,4.48974,1560.1,1560.0,10.7336]
[1744827503867,1.28202,1560.0,1559.9,0.00961045]
[1744827504069,1.28227,1559.7,1559.6,16.60073697]
[1744827504266,4.49007,1559.7,1559.6,16.60073697]
[1744827504959,4.49007,1559.7,1559.6,14.94083698]
[1744827505165,4.49007,1559.7,1559.6,11.34007698]
[1744827505365,1.28235,1559.6,1559.5,17.22508311]
[1744827505555,1.28235,1559.6,1559.5,1.09638311]
[1744827505757,1.28235,1559.6,1559.2,21.70502831]
[1744827505758,1.2826,1559.3,1559.2,21.70502831]
[1744827505960,4.4904,1559.3,1559.2,18.24509831]
[1744827506255,9.4904,1559.3,1559.2,14.90539704]
[1744827506659,1.28268,1559.2,1559.1,28.67185047]
[1744827506966,1.28268,1559.2,1559.1,21.25418047]
[1744827507164,6.28268,1559.2,1559.1,19.14336047]
[1744827507465,1.28268,1559.2,1559.1,19.14336047]
[1744827507861,1.28309,1558.8,1558.5,11.3364]
[1744827508067,4.49073,1558.9,1558.7,1.28304]
[1744827508273,3.2078,1559.2,1558.9,1.28286]
[1744827508460,3.2078,1559.2,1559.0,10.2366]
[1744827508768,0.00961045,1559.4,1559.0,16.6515]
[1744827508974,13.6429,1560.0,1559.6,1.28234]
[1744827509158,3.2078,1560.2,1560.0,1.282]
[1744827509362,10.4351,1560.3,1559.9,1.28206]
[1744827509559,13.6429,1560.3,1560.0,10.2366]
[1744827509766,1.28194,1560.1,1560.0,10.2366]
[1744827510166,1.28202,1560.0,1559.9,0.00961045]
[1744827510369,11.71712,1560.0,1559.9,0.00961045]
[1744827510975,1.28202,1560.0,1559.9,0.00961045]
[1744827511367,11.51222,1560.0,1559.9,0.00961045]
[1744827512760,16.51222,1560.0,1559.9,4.5e-07]
[1744827512966,11.51222,1560.0,1559.9,4.5e-07]
[1744827513573,16.51222,1560.0,1559.9,4.5e-07]
[1744827514866,1.28243,1559.5,1559.4,9.7985]
[1744827515375,1.28284,1559.0,1558.9,5.171]
[1744827515571,1.28284,1559.0,1558.9,9.7985]
[1744827516268,1.28284,1559.0,1558.8,4.8422]
[1744827516269,6.41504,1559.0,1558.6,1.2831]
[1744827516470,0.00961045,1559.1,1558.8,1.28301]
[1744827516667,1.2829,1559.0,1558.9,9.9284]
[1744827517469,1.29240045,1559.1,1558.9,9.9284]
[1744827517770,0.00961045,1559.1,1559.0,1.28284]
[1744827517974,1.28232,1559.7,1559.5,1.28237]
[1744827518173,3.20526,1559.9,1559.2,6.41432]
[1744827518373,1.28235,1559.6,1559.2,6.41432]
[1744827518570,6.41327,1559.8,1559.4,1.28248]
[1744827518770,3.20547,1559.8,1559.5,1.28243]
[1744827518967,1.28235,1559.6,1559.5,0.00961045]
[1744827519870,9.49015,1559.6,1559.5,4.5e-07]
[1744827522977,1.28301,1558.8,1558.7,5.0202]
[1744827523169,4.49081,1558.8,1558.7,15.7311]
[1744827523370,1.28301,1558.8,1558.7,15.7311]
[1744827523675,1.28301,1558.8,1558.7,17.01419]
[1744827523871,1.28297,1558.9,1558.8,1.28299]
[1744827524083,3.21741045,1559.0,1558.8,1.28299]
[1744827524379,4.50031045,1559.0,1558.9,10.7109]
[1744827524584,1.28301,1558.8,1558.7,5.0202]
[1744827524879,6.42467045,1559.0,1558.8,1.28301]
[1744827524880,4.50032045,1559.0,1558.8,1.28301]
[1744827525072,4.50032045,1559.0,1558.9,10.7109]
[1744827525473,3.21741045,1559.0,1558.9,11.99383]
[1744827525678,4.50025045,1559.0,1558.9,10.7109]
[1744827526267,1.28301,1558.8,1558.7,5.0202]
[1744827526472,3.20773,1558.7,1558.1,3.2078]
[1744827526677,3.20773,1558.7,1558.0,3.20898]
[1744827526678,1.28337,1558.4,1558.0,3.20916]
[1744827526879,1.28337,1558.4,1558.3,1.28342]
[1744827527175,3.20856,1558.3,1557.8,11.90555]
[1744827527376,1.28375,1557.9,1557.8,10.6218]
[1744827527676,6.41679,1558.1,1557.6,11.53668]
[1744827527884,1.28398,1557.7,1557.5,1.28404]
[1744827528180,3.2078,1557.7,1557.5,10.2527]
[1744827528378,1.284,1557.6,1557.5,10.2527]
[1744827528573,3.2078,1557.9,1557.5,10.2527]
[1744827528772,1.28392,1557.7,1557.5,11.53671]
[1744827528974,1.28388,1557.8,1557.6,1.28396]
[1744827529184,1.29344045,1557.8,1557.7,10.268]
[1744827529683,0.00961045,1557.8,1557.7,11.55191]
[1744827530178,3.2078,1558.1,1557.9,1.28375]
[1744827530379,1.28358,1558.1,1558.0,10.268]
[1744827530572,4.49138,1558.1,1558.0,10.268]
[1744827531780,3.20917,1558.0,1557.4,8.3195]
[1744827532077,1.28435,1557.2,1557.0,1.28447]
[1744827532268,1.29388045,1557.3,1557.1,1.28436]
[1744827532469,0.00961045,1557.3,1557.2,10.99293]
[1744827532774,0.00961045,1557.3,1557.2,15.99293]
[1744827532978,3.20948,1557.9,1557.3,3.21062]
[1744827532979,3.2078,1557.9,1557.3,3.21062]
[1744827533179,1.28392,1557.7,1557.5,1.28403]
[1744827533379,3.2078,1557.9,1557.6,10.9926]
[1744827533380,1.28389,1557.8,1557.6,10.9926]
[1744827533580,3.2078,1557.9,1557.3,5.0816]
[1744827533778,3.2078,1557.9,1557.4,9.7086]
[1744827533978,0.00961045,1557.8,1557.7,1.2839]
[1744827534181,3.2078,1558.3,1557.7,47.21757]
[1744827534369,1.28361,1558.1,1557.9,1.28372]
[1744827534572,1.28361,1558.1,1557.9,1.28367]
[1744827534884,1.28357,1558.2,1558.0,10.99222]
[1744827535083,1.28358,1558.1,1558.0,10.99222]
[1744827535379,3.2078,1558.3,1558.0,10.99222]
[1744827535380,1.28357,1558.2,1558.0,10.99222]
[1744827535581,1.28358,1558.1,1558.0,9.7086]
[1744827535985,1.28375,1557.9,1557.8,5.2074]
[1744827536180,1.28369,1558.0,1557.8,15.0164]
[1744827536481,1.28369,1558.0,1557.9,9.809]
[1744827537180,3.2078,1558.1,1558.0,1.28367]
[1744827537381,0.00961045,1558.3,1558.2,1.2835]
[1744827537782,0.00961045,1558.3,1558.2,6.2835]
[1744827538088,3.2078,1558.5,1558.2,5.0]
[1744827538089,4.49107,1558.5,1558.2,5.0]
[1744827538381,1.28334,1558.4,1558.3,10.0193]
[1744827538587,4.49112,1558.5,1558.4,1.28334]
[1744827539189,1.28334,1558.4,1558.3,10.0193]
[1744827539482,4.49111,1558.5,1558.3,11.30266]
[1744827539692,4.49112,1558.5,1558.3,11.30266]
[1744827539885,1.28334,1558.4,1558.3,11.30266]
[1744827540081,1.28331,1558.5,1558.3,11.30265]
[1744827540278,0.00961045,1558.6,1558.5,1.28325]
[1744827540678,0.00961045,1558.6,1558.5,11.30255]
[1744827540880,13.92163,1559.0,1558.5,10.0193]
[1744827541282,6.41522,1558.9,1558.5,10.0193]
[1744827541582,13.3174,1558.9,1558.5,10.0193]
[1744827541784,1.28301,1558.8,1558.5,10.0193]
[1744827541977,13.32701045,1558.9,1558.5,10.0193]
[1744827542179,1.29256045,1558.9,1558.8,1.28301]
[1744827542383,1.29256045,1558.9,1558.7,1.28302]
[1744827542588,1.28301,1558.8,1558.7,1.28302]
[1744827542882,0.00961045,1558.9,1558.7,1.28302]
[1744827542883,0.00961045,1558.9,1558.8,1.28301]
[1744827543087,4.00226973,1559.3,1559.2,1.28268]
[1744827543286,5.28486973,1559.3,1559.2,1.28268]
[1744827543489,4.00226973,1559.3,1559.2,1.28268]
[1744827543688,1.2827,1559.2,1559.1,1.28274]
[1744827543985,1.2827,1559.2,1558.8,11.7063]
[1744827543986,4.00857093,1559.3,1559.2,1.28268]
[1744827544191,10.00567433,1559.7,1559.6,1.28235]
[1744827544490,1.94147433,1559.7,1559.6,1.28235]
[1744827544690,3.22379433,1559.7,1559.3,3.2078]
[1744827544891,3.22379433,1559.7,1559.5,1.28243]
[1744827545089,1.28235,1559.6,1559.1,6.41459]
[1744827545391,1.28235,1559.6,1559.4,1.29207045]
[1744827545586,13.06339433,1559.7,1559.5,1.28243]
[1744827545893,11.78107433,1559.7,1559.5,1.28238]
[1744827546094,11.78107433,1559.7,1559.4,0.00961045]
[1744827546390,1.28243,1559.5,1559.4,0.00961045]
[1744827546587,3.20613,1559.5,1558.4,11.7428]
[1744827546783,6.41544,1558.8,1558.0,6.41682]
[1744827546984,3.2078,1558.6,1558.1,3.20896]
[1744827547190,11.7428,1559.0,1558.5,3.2078]
[1744827547391,1.28316,1558.7,1558.5,1.28321]
[1744827547685,1.28318,1558.6,1558.4,0.00961045]
[1744827547888,1.28325,1558.5,1558.4,0.00961045]
[1744827548089,12.03445,1558.5,1558.4,0.00961045]
[1744827548284,12.03445,1558.5,1557.3,89.43974645]
[1744827548285,3.20864,1558.3,1557.7,5.0812]
[1744827548484,1.2837,1558.0,1557.8,1.28376]
[1744827549088,3.2078,1558.0,1557.7,5.0812]
[1744827549283,3.2078,1557.8,1557.7,0.00961045]
[1744827549491,1.28424,1557.3,1557.2,12.65848465]
[1744827550181,9.49204,1557.3,1557.2,5.581706]
[1744827550396,3.2078,1557.3,1557.2,5.581706]
[1744827550586,12.03538,1557.4,1557.2,5.581706]
[1744827550889,3.2078,1557.6,1557.1,0.00961045]
[1744827551089,3.21741045,1558.0,1557.7,1.28387]
[1744827551288,1.28385,1557.8,1557.3,5.0395]
[1744827551494,13.21141045,1558.0,1557.4,3.2078]
[1744827551796,14.49510045,1558.0,1557.8,1.28382]
[1744827552097,14.49510045,1558.0,1557.7,1.28385]
[1744827552291,3.21741045,1558.0,1557.5,3.2102]
[1744827552593,0.00961045,1558.0,1557.8,1.28378]
[1744827552788,1.28383,1557.9,1557.6,1.28396]
[1744827552986,4.50114045,1558.0,1557.7,1.2839]
[1744827553186,0.00961045,1558.0,1557.6,3.2078]
[1744827553502,0.00961045,1558.0,1557.9,1.28375]
[1744827554594,0.00961045,1558.0,1557.9,6.28375]
[1744827554797,88.958,1558.8,1557.9,6.28375]
[1744827554798,3.2078,1558.8,1558.1,3.20885]
[1744827554997,10.3781,1558.9,1558.3,6.41636]
[1744827555300,8.83711827,1559.4,1558.6,3.20794]
[1744827555594,3.2078,1559.4,1558.9,3.20723]
[1744827555897,3.20546,1559.9,1559.1,3.2078]
[1744827555898,3.2078,1559.9,1559.1,3.2078]
[1744827556195,1.28237,1559.6,1559.4,1.28251]
[1744827556395,0.00961045,1559.7,1559.6,1.28235]
[1744827557292,1.29193045,1559.7,1559.5,10.3825]
[1744827557491,1.28235,1559.6,1559.5,10.3825]
[1744827557805,0.00961045,1559.7,1559.5,11.66493]
[1744827558098,0.00961045,1559.7,1559.6,1.28235]
[1744827559096,3.71920925,1560.7,1559.9,1.2821]
[1744827559297,10.3855,1560.8,1560.2,3.2078]
[1744827559598,10.3855,1560.8,1560.5,1.2816]
[1744827559801,10.3855,1560.8,1560.3,51.2109]
[1744827559802,10.3855,1560.8,1560.4,3.2078]
[1744827559995,11.66692,1560.8,1560.5,10.4109]
[1744827560190,10.39511044,1560.8,1560.5,10.42051045]
[1744827560498,10.39511044,1560.8,1560.5,0.00961045]
[1744827560697,4.48927,1560.7,1560.5,0.00961045]
[1744827560894,1.28153,1560.6,1560.5,4.5e-07]
[1744827561196,3.20407,1560.5,1559.8,10.4109]
[1744827561398,13.7142,1560.4,1559.9,40.8]
[1744827561595,1.28192,1560.2,1559.9,40.8]
[1744827561791,1.28189,1560.2,1560.0,11.69289]
[1744827561993,10.5064,1560.4,1560.0,13.6187]
[1744827562191,1.28151,1560.7,1560.4,1.28164]
[1744827562392,1.28156,1560.6,1560.2,3.2078]
[1744827562594,1.28153,1560.6,1560.3,10.3213]
[1744827562793,1.28153,1560.6,1560.4,1.28165]
[1744827562989,1.28153,1560.6,1560.3,10.3213]
[1744827562990,10.07701044,1560.8,1560.3,10.3213]
[1744827563295,10.07701044,1560.8,1560.4,3.2078]
[1744827563296,0.00961044,1560.8,1560.4,3.2078]
[1744827563499,0.00961044,1560.8,1560.6,1.28146]
[1744827563702,1.29100044,1560.8,1560.7,10.3213]
[1744827563901,0.00961044,1560.8,1560.7,11.60275]
[1744827565398,1.29097044,1560.8,1560.7,10.3213]
[1744827565604,1.29097044,1560.8,1560.6,1.28147]
[1744827565903,1.28161,1560.5,1560.4,10.5009]
[1744827566097,3.2078,1560.7,1560.2,11.78273]
[1744827566098,1.28174,1560.4,1560.2,11.78273]
[1744827566404,1.28174,1560.4,1560.2,10.5009]
[1744827566405,10.7091,1560.4,1560.2,10.5009]
[1744827566603,4.48929,1560.7,1560.5,1.28154]
[1744827566802,3.2078,1560.7,1560.4,3.2078]
[1744827567105,4.4893,1560.7,1560.5,11.78249]
[1744827567304,3.2078,1560.7,1560.5,10.5009]
[1744827567508,3.2078,1560.7,1560.6,1.28153]
[1744827567698,0.00961044,1560.8,1560.5,10.5009]
[1744827567897,1.29102044,1560.8,1560.6,1.28149]
[1744827568105,0.00961044,1560.8,1560.7,1.28145]
[1744827568304,1.28145,1560.7,1560.6,1.28148]
[1744827568497,1.28145,1560.7,1560.6,1.28153]
[1744827568498,11.208,1560.7,1560.6,1.28153]
[1744827568698,1.29097044,1560.8,1560.5,10.5009]
[1744827568900,0.00961044,1560.8,1560.5,10.5009]
[1744827569104,1.28149,1560.7,1560.5,11.78245]
[1744827569294,11.20799,1560.7,1560.6,1.28153]
[1744827569494,9.9265,1560.7,1560.6,1.28153]
[1744827569693,0.00961044,1560.8,1560.5,10.5009]
[1744827569900,0.00961044,1560.8,1560.7,1.28145]
[1744827570108,1e-08,1560.8,1560.7,1.28145]
[1744827570300,1.28104,1561.2,1560.8,3.20341]
[1744827570515,6.40918,1561.8,1561.0,6.41081]
[1744827570697,9.9265,1561.6,1561.1,3.2028]
[1744827570903,1.28094,1561.4,1561.2,1.281]
[1744827571098,3.20157,1561.7,1561.1,44.00273]
[1744827571408,0.00961045,1561.4,1561.3,1.28095]
[1744827571702,3.20087,1562.1,1561.4,3.20218]
[1744827571703,3.20075,1562.1,1561.4,3.20218]
[1744827571905,1.28068,1561.7,1561.5,1.28073]
[1744827572110,3.2078,1562.1,1561.3,3.2078]
[1744827572299,1.28019,1562.3,1562.1,1.28024]
[1744827572505,1.28035,1562.1,1561.7,6.40937]
[1744827572705,1.2803,1562.1,1562.0,0.00961045]
[1744827572900,1.28087,1561.4,1561.3,1.28092]
[1744827573205,6.40958,1561.6,1561.2,1.28098]
[1744827573506,6.4092,1561.8,1561.1,3.2028]
[1744827573812,1.28098,1561.3,1561.2,1.28102]
[1744827574008,3.2078,1561.4,1560.8,3.2078]
[1744827574206,0.00961045,1561.6,1561.1,0.00961045]
[1744827574405,3.21741045,1561.6,1561.1,0.00961045]
[1744827574613,3.21140045,1561.6,1561.1,0.00961045]
[1744827574911,3.21140045,1561.6,1561.1,1.29071045]
[1744827574912,1.28099,1561.3,1561.1,1.29071045]
[1744827575106,3.20199,1561.5,1561.1,0.00961045]
[1744827575309,1.28104,1561.2,1561.1,0.00961045]
[1744827575511,1.28102,1561.3,1561.1,1.29067045]
[1744827575808,1.28104,1561.2,1561.1,0.00961045]
[1744827576312,0.00961045,1561.6,1561.1,3.21741045]
[1744827576509,3.21741045,1561.6,1561.1,0.00961045]
[1744827576814,4.48884,1561.2,1561.1,0.00961045]
[1744827577008,3.20219,1561.4,1561.1,0.00961045]
[1744827577009,3.2078,1561.4,1561.1,0.00961045]
[1744827577206,1.28104,1561.2,1561.1,0.00961045]
[1744827578115,1.28104,1561.2,1561.1,1.29073045]
[1744827578313,1.28097,1561.3,1561.2,1.28102]
[1744827578511,1.28102,1561.3,1561.1,1.29067045]
[1744827578807,14.90622045,1561.6,1561.3,1.28094]
[1744827579108,0.00961045,1561.6,1561.2,3.2026]
[1744827579303,1.29036045,1561.6,1561.2,13.93905]
[1744827579505,0.00961045,1561.6,1561.5,1.28079]
[1744827580205,0.00961045,1561.6,1561.4,10.7365]
[1744827580206,0.00961045,1561.6,1561.4,10.59685067]
[1744827580406,0.00961045,1561.6,1561.5,1.28079]
[1744827581016,0.00961045,1561.6,1561.5,4.48859]
[1744827581315,0.00961045,1561.6,1561.5,1.28079]
[1744827581907,1.28086,1561.5,1561.1,11.60977045]
[1744827582214,3.21741045,1561.6,1561.1,0.00961045]
[1744827582215,3.2078,1561.4,1561.1,0.00961045]
[1744827582421,3.20198,1561.5,1561.1,0.00961045]
[1744827582615,1.28104,1561.2,1561.1,0.00961045]
[1744827583123,3.21741045,1561.6,1561.1,0.00961045]
[1744827583415,0.00961045,1561.6,1561.5,1.28079]
[1744827584118,0.00961045,1561.6,1561.5,11.46349]
[1744827585021,3.21141045,1561.6,1561.2,3.2078]
[1744827585219,1.28089,1561.4,1561.3,1.2809]
[1744827585421,1.28095,1561.3,1561.2,1.28099]
[1744827585618,1.28104,1561.2,1561.1,0.00961045]
[1744827585924,1.28104,1561.2,1561.1,1.29073045]
[1744827586126,1.28104,1561.2,1561.1,0.00961045]
[1744827586923,11.67024,1561.2,1561.1,0.00961045]
[1744827587517,16.67024,1561.2,1561.1,0.00961045]
[1744827587821,16.67024,1561.2,1561.1,2e-08]
[1744827588326,11.67024,1561.2,1561.1,2e-08]
[1744827589026,3.20199,1561.5,1561.1,2e-08]
[1744827589027,3.2078,1561.5,1561.1,2e-08]
[1744827589218,10.3892,1561.4,1561.3,1.28095]
[1744827589418,0.00961045,1561.6,1561.5,1.28079]
[1744827589627,1.28087,1561.4,1561.3,11.7734]
[1744827590124,11.10596,1561.5,1561.4,1.28087]
[1744827590525,11.10589,1561.5,1561.4,1.28087]
[1744827591126,0.00961045,1561.6,1561.5,1.28079]
[1744827591330,1.29032045,1561.6,1561.5,1.28079]
[1744827591526,1.28081,1561.5,1561.4,1.28079]
[1744827591727,9.8251,1561.5,1561.4,11.02939]
[1744827592027,0.00961045,1561.6,1561.5,1.28079]
[1744827593320,0.00961045,1561.6,1561.5,4.48859]
[1744827593831,0.00961045,1561.6,1561.5,9.48859]
[1744827594030,3.2078,1562.3,1561.7,3.20157]
[1744827594327,3.2078,1562.3,1561.8,13.18897]
[1744827594527,9.9536,1562.2,1562.1,1.28026]
[1744827594716,9.9536,1562.2,1562.0,1.28034]
[1744827594917,9.9536,1562.2,1561.9,9.9876]
[1744827595127,11.23385,1562.2,1562.1,1.2803]
[1744827595326,9.9536,1562.2,1561.9,9.99721045]
[1744827595525,1.28038,1562.0,1561.9,1.29007045]
[1744827595728,1.28038,1562.0,1561.9,1.29005045]
[1744827595928,1.28034,1562.1,1561.9,0.00961045]
[1744827596223,1.28037,1562.1,1561.9,0.00961045]
[1744827596431,3.20996043,1562.3,1561.9,1.29007045]
[1744827596432,10.1158,1562.0,1561.9,1.29007045]
[1744827596631,11.39618,1562.0,1561.9,1.29007045]
[1744827596826,16.39618,1562.0,1561.9,0.00961045]
[1744827597017,19.60398,1562.0,1561.9,1e-08]
[1744827599136,16.39618,1562.0,1561.9,1e-08]
[1744827599329,11.39618,1562.0,1561.9,1e-08]
[1744827600426,14.60398,1562.0,1561.9,1e-08]
[1744827600935,28.08498,1562.0,1561.9,1e-08]
[1744827602231,3.2078,1561.8,1560.7,3.2078]
[1744827602424,3.2078,1560.8,1560.5,4.48936]
[1744827602629,1.28161,1560.5,1560.4,10.98477]
[1744827602829,1.28161,1560.5,1560.4,9.7031]
[1744827603132,0.00961045,1560.6,1560.5,1.28161]
[1744827603322,0.00961045,1560.6,1560.5,4.48941]
[1744827603530,0.00961045,1560.6,1560.5,1.28161]
[1744827603730,0.00961045,1560.6,1560.5,15.98471]
[1744827603928,1.29114045,1560.6,1560.5,9.7031]
[1744827604128,1.29114045,1560.6,1560.5,10.98471]
[1744827604328,1.29114045,1560.6,1560.5,9.7031]
[1744827604529,0.00961045,1560.6,1560.5,10.98471]
[1744827605128,1.29114045,1560.6,1560.5,9.7031]
[1744827605333,1.28166,1560.5,1560.3,1.29133045]
[1744827605534,0.00961045,1560.6,1560.5,1.28161]
[1744827605734,0.00961045,1560.6,1560.5,16.14741]
[1744827605933,1.29114045,1560.6,1560.5,9.8658]
[1744827606129,0.00961045,1560.6,1560.5,11.14741]
[1744827606329,1.29114045,1560.6,1560.5,11.14741]
[1744827606535,1.29114045,1560.6,1560.5,9.8658]
[1744827606737,0.00961045,1560.6,1560.5,11.14741]
[1744827607130,1.29114045,1560.6,1560.5,9.8658]
[1744827607332,1.28161,1560.5,1560.4,1.28169]